bitfinex/quotes_SOLUSD_20251030
["timestamp","ask_amount","ask_price","bid_price","bid_amount"]
[1761805051555,7.62043808,193.85,193.79,12.78063932]
[1761805051874,0.64476195,193.87,193.82,7.62043808]
[1761805052085,13.42273969,193.89,193.83,13.48959816]
[1761805052460,13.42273969,193.89,193.84,0.71]
[1761805052970,0.08,193.88,193.77,0.40260534]
[1761805053174,7.62043808,193.84,193.79,0.71]
[1761805053358,0.64489501,193.83,193.79,0.71]
[1761805053987,5.8042859,193.83,193.79,0.71]
[1761805054190,13.42472398,193.83,193.79,0.71]
[1761805054773,7.62043808,193.82,193.76,8.33043808]
[1761805054975,0.64496156,193.81,193.77,0.71]
[1761805055156,0.64489501,193.83,193.78,7.62043808]
[1761805055361,7.62043808,193.86,193.8,7.62043808]
[1761805055595,0.64482847,193.85,193.8,7.62043808]
[1761805055796,0.64482847,193.85,193.77,0.71]
[1761805055797,0.64479521,193.86,193.84,7.62043808]
[1761805055963,8.26496731,193.94,193.86,18.05426596]
[1761805056164,8.26496731,193.94,193.85,7.62043808]
[1761805056165,7.62043808,193.93,193.87,7.62043808]
[1761805056417,7.62043808,193.93,193.8,30.38082769]
[1761805056418,7.62043808,193.88,193.79,0.71]
[1761805056588,0.64476195,193.87,193.82,7.62043808]
[1761805056790,7.62043808,193.9,193.84,7.62043808]
[1761805056982,0.6445957,193.92,193.85,8.33043808]
[1761805057195,0.6445957,193.92,193.85,0.71]
[1761805057196,7.62043808,193.9,193.85,0.71]
[1761805057409,0.64469544,193.89,193.85,0.71]
[1761805057792,0.64469544,193.89,193.84,7.62043808]
[1761805057994,5.15782958,193.88,193.85,0.71]
[1761805058202,8.26520003,193.87,193.81,8.33043808]
[1761805058723,7.62043808,193.86,193.81,0.71]
[1761805058921,8.26526655,193.85,193.79,7.62043808]
[1761805059523,7.62043808,193.83,193.78,0.71]
[1761805059701,8.26536636,193.82,193.76,8.33043808]
[1761805060084,13.42504466,193.82,193.76,13.49144889]
[1761805060285,5.80460658,193.82,193.77,7.62043808]
[1761805060502,0.64492828,193.82,193.78,7.62043808]
[1761805060724,8.26520003,193.87,193.81,7.62043808]
[1761805060896,7.62043808,193.9,193.84,7.62043808]
[1761805061097,7.62043808,193.88,193.82,7.62043808]
[1761805061292,0.64476195,193.87,193.82,7.62043808]
[1761805061621,0.64476195,193.87,193.83,0.71]
[1761805061793,0.64476195,193.87,193.83,8.33043808]
[1761805062126,0.64476195,193.87,193.83,7.62043808]
[1761805062288,5.15809563,193.87,193.83,7.62043808]
[1761805062497,8.26510027,193.9,193.84,8.33043808]
[1761805062708,13.42247455,193.9,193.84,8.33043808]
[1761805062910,0.64466219,193.9,193.86,7.62043808]
[1761805063229,7.62043808,193.9,193.85,0.71]
[1761805063414,0.64469544,193.89,193.84,7.62043808]
[1761805063787,0.64469544,193.89,193.85,8.33043808]
[1761805064004,0.64466219,193.9,193.85,8.33043808]
[1761805064207,0.64466219,193.9,193.86,7.62043808]
[1761805064404,0.64462895,193.91,193.87,7.62043808]
[1761805064616,0.6445957,193.92,193.87,8.33043808]
[1761805064824,5.80138171,193.92,193.87,8.33043808]
[1761805065017,0.6445957,193.92,193.88,0.71]
[1761805065331,5.80138355,193.92,193.88,8.33043808]
[1761805065698,5.80138355,193.92,193.88,7.62043808]
[1761805065902,5.80138355,193.92,193.89,0.71]
[1761805066131,5.80138355,193.92,193.88,8.33043808]
[1761805066727,0.6445957,193.92,193.88,12.77817231]
[1761805066913,0.64452923,193.94,193.89,8.33043808]
[1761805067113,0.64452923,193.94,193.9,7.62043808]
[1761805067310,0.64452923,193.94,193.91,0.71]
[1761805067828,5.1562876,193.94,193.91,0.71]
[1761805068228,0.64446277,193.96,193.91,8.33043808]
[1761805068429,7.62043808,193.98,193.93,7.62043808]
[1761805068628,5.79930799,193.99,193.94,8.33043808]
[1761805068803,0.72426347,194.02,193.95,8.33043808]
[1761805069003,0.72426347,194.02,193.88,0.40178825]
[1761805069004,7.62043808,193.99,193.89,12.89335733]
[1761805069205,0.64429668,194.01,193.96,7.62043808]
[1761805069405,7.62043808,194.02,193.96,7.62043808]
[1761805069627,7.62043808,194.0,193.95,8.33043808]
[1761805069934,7.62043808,194.0,193.96,0.71]
[1761805070110,7.62043808,194.02,193.96,8.33043808]
[1761805070433,13.41851208,194.03,193.97,7.62043808]
[1761805070616,8.26466835,194.03,193.98,7.62043808]
[1761805070812,8.26460195,194.05,194.0,7.62043808]
[1761805071128,0.64416387,194.05,194.0,7.62043808]
[1761805071331,0.64416387,194.05,194.01,0.71]
[1761805071710,13.41794054,194.05,193.97,0.71]
[1761805071912,7.62043808,194.02,193.96,7.62043808]
[1761805072229,0.64429668,194.01,193.97,0.71]
[1761805072406,5.79875197,194.01,193.97,8.33043808]
[1761805072611,0.64429668,194.01,193.97,8.33043808]
[1761805072833,0.64426347,194.02,193.98,0.69]
[1761805073244,13.61703076,194.08,194.01,7.62043808]
[1761805073421,13.61703076,194.08,193.97,5.15535496]
[1761805073422,0.8440643,194.08,194.02,0.69]
[1761805073618,13.61708073,194.08,194.02,8.31043808]
[1761805073914,7.62043808,194.07,194.02,0.69]
[1761805074134,0.2,194.08,194.03,7.62043808]
[1761805074318,13.61704384,194.08,194.02,7.62043808]
[1761805074526,13.61704384,194.08,193.98,5.15507172]
[1761805074527,7.62043808,194.06,193.98,5.84507172]
[1761805074722,0.64416387,194.05,193.99,0.69]
[1761805074916,8.26453557,194.07,194.01,7.62043808]
[1761805075124,0.64409749,194.07,194.02,8.31043808]
[1761805075503,0.64409749,194.07,194.03,0.69]
[1761805075734,8.26453557,194.07,194.02,0.69]
[1761805075908,0.64409749,194.07,194.02,8.31043808]
[1761805076317,0.64409749,194.07,194.03,0.69]
[1761805076533,0.2,194.08,194.03,8.31043808]
[1761805076715,0.2,194.08,194.06,7.62043808]
[1761805077224,0.2,194.08,194.06,0.69]
[1761805077414,0.2,194.08,194.05,7.62043808]
[1761805077728,0.2,194.08,194.06,0.69]
[1761805078232,0.2,194.08,194.07,7.62043808]
[1761805078609,0.2,194.08,194.07,8.31043808]
[1761805079107,0.2,194.08,194.07,0.69]
[1761805079307,0.2,194.08,194.05,0.69]
[1761805079535,0.2,194.08,194.06,7.62043808]
[1761805079734,0.2,194.08,194.07,7.62043808]
[1761805079934,8.46450238,194.08,194.03,8.31043808]
[1761805080110,0.2,194.08,194.05,8.31043808]
[1761805080316,5.35255564,194.08,194.05,0.69]
[1761805080634,0.64409749,194.07,194.02,7.62043808]
[1761805080806,0.64409749,194.07,193.97,16.1154364]
[1761805080807,0.64409749,194.07,194.03,8.31043808]
[1761805081012,0.2,194.08,194.06,7.62043808]
[1761805081449,0.2,194.08,194.06,8.31043808]
[1761805081740,0.2,194.08,194.06,0.69]
[1761805083840,5.35256868,194.08,194.06,0.69]
[1761805084037,0.2,194.08,194.06,0.69]
[1761805084341,0.2,194.08,194.07,7.62043808]
[1761805084636,0.2,194.08,194.07,12.773218]
[1761805084819,0.2,194.09,194.08,17.40926577]
[1761805085012,0.2,194.09,194.08,18.09926577]
[1761805085212,0.2,194.09,194.08,0.69]
[1761805085519,0.2,194.09,194.08,8.31043808]
[1761805085925,0.2,194.09,194.08,79.69926577]
[1761805086627,0.2,194.15,194.11,9.78882769]
[1761805086825,0.2,194.15,194.14,7.62043808]
[1761805087236,0.2,194.15,194.1,5.15198351]
[1761805087237,0.2,194.15,194.1,61.6]
[1761805087428,5.99452586,194.15,194.1,69.91043808]
[1761805087625,13.61496394,194.15,194.1,69.91043808]
[1761805087825,13.61496394,194.15,194.1,62.29]
[1761805087826,7.62043808,194.14,194.1,62.29]
[1761805088036,5.35069378,194.15,194.11,8.31043808]
[1761805088242,0.2,194.15,194.14,7.62043808]
[1761805088545,0.6435669,194.23,194.14,18.09926577]
[1761805088847,0.2,194.35,194.19,7.62043808]
[1761805088848,7.62043808,194.25,194.19,7.62043808]
[1761805089024,0.64353377,194.24,194.19,7.62043808]
[1761805089220,0.64353377,194.24,194.12,82.192]
[1761805089221,7.62043808,194.22,194.17,7.62043808]
[1761805089443,0.64353377,194.24,194.12,82.192]
[1761805089444,7.62043808,194.2,194.15,8.31043808]
[1761805089632,1.32353377,194.24,194.15,8.31043808]
[1761805089832,7.62043808,194.21,194.15,8.31043808]
[1761805090043,1.32353377,194.24,194.15,0.69]
[1761805090044,7.62043808,194.2,194.15,0.69]
[1761805090361,8.26413754,194.19,194.13,0.69]
[1761805090535,7.62043808,194.2,194.15,7.62043808]
[1761805090736,5.14910349,194.21,194.16,7.62043808]
[1761805091229,5.14910349,194.21,194.17,0.69]
[1761805092060,8.2641044,194.2,194.14,8.31043808]
[1761805092241,7.62043808,194.2,194.14,8.31043808]
[1761805092554,5.14882886,194.22,194.17,7.62043808]
[1761805093057,13.41257245,194.23,194.18,0.69]
[1761805093356,7.62043808,194.25,194.19,7.62043808]
[1761805093652,0.64353377,194.24,194.19,7.62043808]
[1761805093950,0.64353377,194.24,194.19,8.32043808]
[1761805094156,0.64353377,194.24,194.2,0.7]
[1761805094958,8.26390559,194.26,194.2,8.32043808]
[1761805095155,0.84336816,194.29,194.23,7.62043808]
[1761805095454,8.46380624,194.29,194.24,8.32043808]
[1761805095654,5.99033484,194.29,194.24,8.32043808]
[1761805095851,0.2,194.29,194.26,7.62043808]
[1761805096437,0.2,194.29,194.27,0.7]
[1761805097252,0.2,194.29,194.25,0.7]
[1761805097430,0.2,194.29,194.27,7.62043808]
[1761805097630,0.2,194.29,194.23,9.78882769]
[1761805097848,0.2,194.29,194.26,7.62043808]
[1761805098047,5.34694856,194.29,194.26,7.62043808]
[1761805098256,0.2,194.29,194.27,0.7]
[1761805098632,0.2,194.29,194.27,8.32043808]
[1761805099138,0.2,194.29,194.28,8.32043808]
[1761805099748,0.2,194.29,194.28,18.10926577]
[1761805099937,0.2,194.29,194.27,5.14745364]
[1761805099938,0.2,194.29,194.24,0.7]
[1761805100140,0.2,194.29,194.28,7.62043808]
[1761805100350,0.2,194.29,194.26,9.78882769]
[1761805100551,0.2,194.29,194.28,7.62043808]
[1761805100755,0.2,194.29,194.28,8.32043808]
[1761805101056,0.2,194.29,194.28,0.7]
[1761805101252,0.2,194.29,194.28,7.62043808]
[1761805101463,0.2,194.29,194.27,7.62043808]
[1761805101633,0.2,194.29,194.28,0.7]
[1761805102166,0.2,194.29,194.27,7.62043808]
[1761805102346,0.2,194.29,194.27,0.7]
[1761805102672,7.62043808,194.28,194.22,0.71]
[1761805102842,7.62043808,194.27,194.22,8.33043808]
[1761805103042,12.7679297,194.27,194.22,8.33043808]
[1761805103269,12.7679297,194.27,194.23,0.71]
[1761805103477,7.62043808,194.26,194.21,7.62043808]
[1761805103640,7.62043808,194.27,194.21,13.47941529]
[1761805103837,7.62043808,194.27,194.21,8.33043808]
[1761805104244,7.62043808,194.27,194.22,0.71]
[1761805104549,8.26383935,194.28,194.22,8.33043808]
[1761805104739,7.62043808,194.27,194.22,8.33043808]
[1761805105136,12.76817822,194.26,194.22,0.71]
[1761805105355,12.76817822,194.26,194.2,7.62043808]
[1761805105356,7.62043808,194.25,194.21,0.71]
[1761805105554,5.14749537,194.27,194.21,8.33043808]
[1761805105738,12.76793345,194.27,194.21,8.33043808]
[1761805106162,12.76793345,194.27,194.22,0.71]
[1761805106551,7.62043808,194.28,194.22,8.33043808]
[1761805106742,0.2,194.29,194.26,7.62043808]
[1761805107380,0.2,194.29,194.27,0.71]
[1761805107664,0.2,194.29,194.28,7.62043808]
[1761805107865,0.2,194.29,194.28,8.33043808]
[1761805108061,0.2,194.29,194.28,0.71]
[1761805108449,7.82043808,194.29,194.24,7.62043808]
[1761805108753,0.2,194.29,194.27,7.62043808]
[1761805108956,0.2,194.29,194.28,0.71]
[1761805109342,0.2,194.29,194.27,5.09296597]
[1761805109538,0.2,194.29,194.28,0.71]
[1761805109769,0.2,194.29,194.28,5.80296597]
[1761805110445,0.2,194.29,194.28,0.71]
[1761805111061,0.2,194.29,194.27,5.09296597]
[1761805111349,0.2,194.29,194.25,5.09296597]
[1761805111549,0.2,194.29,194.25,5.80296597]
[1761805111860,0.2,194.29,194.26,0.71]
[1761805112452,5.34702967,194.29,194.25,5.09296597]
[1761805112783,5.34702967,194.29,194.24,5.09296597]
[1761805112957,0.2,194.29,194.23,0.71]
[1761805113162,0.2,194.29,194.24,5.09296597]
[1761805113358,10.43993674,194.29,194.24,5.09296597]
[1761805113574,10.43993674,194.29,194.24,5.80296597]
[1761805113946,5.34697077,194.29,194.24,5.80296597]
[1761805114256,5.34697077,194.29,194.25,0.71]
[1761805114775,5.34697077,194.29,194.26,5.09296597]
[1761805114776,0.2,194.29,194.26,5.09296597]
[1761805115350,0.2,194.29,194.27,5.80296597]
[1761805115550,0.2,194.29,194.27,0.71]
[1761805115955,0.2,194.29,194.27,5.80296597]
[1761805116357,0.2,194.29,194.28,0.71]
[1761805116569,0.2,194.29,194.28,5.80296597]
[1761805117776,0.2,194.29,194.28,10.95017618]
[1761805117963,0.2,194.29,194.28,20.73900387]
[1761805118283,0.2,194.29,194.28,20.88116544]
[1761805118459,0.2,194.29,194.28,25.97413141]
[1761805118653,0.2,194.29,194.28,20.88116544]
[1761805119478,0.2,194.29,194.28,25.97413141]
[1761805120071,0.2,194.29,194.28,20.88116544]
[1761805121353,0.2,194.29,194.28,21.79017618]
[1761805122374,0.2,194.29,194.28,16.64296597]
[1761805122579,0.2,194.29,194.28,15.93296597]
[1761805122778,0.2,194.29,194.28,15.98721021]
[1761805123087,0.2,194.29,194.28,16.64296597]
[1761805123378,0.2,194.29,194.27,5.14747481]
[1761805123560,0.2,194.29,194.27,21.08044078]
[1761805123761,0.2,194.29,194.28,5.09296597]
[1761805123965,0.2,194.29,194.28,5.80296597]
[1761805125069,0.2,194.29,194.28,10.95017618]
[1761805125956,0.2,194.29,194.28,5.80296597]
[1761805126187,0.2,194.29,194.28,10.95017618]
[1761805127858,0.2,194.29,194.25,9.78882769]
[1761805128078,0.2,194.29,194.26,15.89296597]
[1761805128287,0.2,194.29,194.26,16.60296597]
[1761805128967,0.2,194.29,194.27,5.09296597]
[1761805129184,0.2,194.29,194.27,10.95041527]
[1761805129390,0.2,194.29,194.27,5.80296597]
[1761805130088,0.2,194.29,194.27,5.09296597]
[1761805130669,0.2,194.29,194.27,10.24042034]
[1761805130992,0.2,194.29,194.25,5.09296597]
[1761805131170,0.2,194.29,194.28,20.02900387]
[1761805131480,0.2,194.35,194.31,20.592]
[1761805131693,0.2,194.35,194.31,5.09296597]
[1761805131899,0.2,194.35,194.31,10.8]
[1761805132103,0.2,194.35,194.32,5.09296597]
[1761805132605,0.2,194.35,194.33,5.09296597]
[1761805133263,0.2,194.35,194.33,5.78296597]
[1761805133462,0.2,194.35,194.34,5.78296597]
[1761805133681,0.2,194.35,194.33,5.09296597]
[1761805133863,0.2,194.35,194.33,15.89296597]
[1761805134065,0.92,194.35,194.33,10.8]
[1761805134301,6.06536277,194.35,194.3,21.03961901]
[1761805134474,5.34536277,194.35,194.3,10.8]
[1761805134794,6.4561686,194.34,194.27,15.89296597]
[1761805135196,5.86605463,194.33,194.27,21.0403702]
[1761805135388,10.9590206,194.33,194.27,21.0403702]
[1761805135569,0.72,194.32,194.27,5.09296597]
[1761805137203,0.2,194.35,194.3,5.09296597]
[1761805137568,0.92,194.35,194.3,5.09296597]
[1761805138217,0.2,194.35,194.28,18.70523574]
[1761805138504,5.34535648,194.35,194.29,10.23972638]
[1761805138712,0.2,194.35,194.29,10.23972638]
[1761805138875,0.2,194.35,194.3,5.09296597]
[1761805139084,0.2,194.35,194.32,5.09296597]
[1761805139398,0.2,194.35,194.12,4.14436737]
[1761805139399,20.592,194.32,194.12,4.14436737]
[1761805139581,4.10341082,194.31,194.24,5.09296597]
[1761805139782,0.64330194,194.31,194.24,5.09296597]
[1761805140100,0.64330194,194.31,194.25,5.09296597]
[1761805140303,1.36330194,194.31,194.25,5.09296597]
[1761805140508,5.14668039,194.3,194.24,10.93105261]
[1761805140806,5.86668039,194.3,194.24,5.14808664]
[1761805141007,5.86668039,194.3,194.23,21.0814562]
[1761805141211,5.81296597,194.29,194.23,10.84]
[1761805141398,5.09296597,194.28,194.23,10.84]
[1761805141583,0.72,194.29,194.23,10.84]
[1761805141907,5.81296597,194.29,194.23,10.24146661]
[1761805142090,0.72,194.29,194.23,10.24146661]
[1761805142490,0.72,194.29,194.2,0.14216157]
[1761805142491,5.09296597,194.25,194.19,5.78296597]
[1761805142809,5.09296597,194.25,194.19,21.08256172]
[1761805142982,0.72,194.29,194.21,9.78882769]
[1761805142983,10.95994343,194.29,194.21,9.78882769]
[1761805143311,10.95994343,194.29,194.22,5.09296597]
[1761805143709,5.09296597,194.31,194.25,5.09296597]
[1761805144083,5.09296597,194.31,194.24,5.78296597]
[1761805144295,5.09296597,194.31,194.25,5.09296597]
[1761805144488,0.72,194.32,194.26,10.24070611]
[1761805145287,5.86618185,194.32,194.26,10.24070611]
[1761805145679,10.95914782,194.32,194.26,10.24070611]
[1761805146917,0.72,194.31,194.26,5.14774014]
[1761805147217,5.81296597,194.31,194.25,10.24093391]
[1761805148109,9.24928678,194.33,194.25,10.93093391]
[1761805148410,12.86409597,194.34,194.28,5.09296597]
[1761805148411,15.0619707,194.34,194.28,5.09296597]
[1761805148607,10.88186182,194.34,194.29,5.09296597]
[1761805148782,10.88186182,194.34,194.26,18.70696317]
[1761805148783,10.88186182,194.34,194.28,5.09296597]
[1761805149412,10.23865919,194.34,194.28,5.78296597]
[1761805149619,5.09296597,194.32,194.25,0.69]
[1761805149788,1.36323573,194.33,194.22,10.93176629]
[1761805149789,5.09296597,194.29,194.22,10.93176629]
[1761805149992,5.73636724,194.28,194.22,10.24176629]
[1761805150187,10.88376031,194.28,194.22,10.24176629]
[1761805150406,0.64333504,194.3,194.23,5.78296597]
[1761805150612,5.09296597,194.29,194.23,5.78296597]
[1761805150810,5.09296597,194.28,194.23,0.69]
[1761805151407,6.51005905,194.3,194.23,0.69]
[1761805151611,6.51005905,194.3,194.23,5.78296597]
[1761805151612,5.09296597,194.29,194.23,5.78296597]
[1761805151992,0.64333504,194.3,194.24,14.88179366]
[1761805152198,5.14632959,194.32,194.26,5.09296597]
[1761805152395,15.06193912,194.34,194.27,10.24044113]
[1761805152586,11.60183024,194.34,194.27,10.24044113]
[1761805152795,5.81296597,194.34,194.27,5.14747516]
[1761805153019,0.64323573,194.33,194.28,5.78296597]
[1761805153198,5.81296597,194.34,194.28,5.78296597]
[1761805153618,5.09296597,194.34,194.28,5.78296597]
[1761805154193,10.23859502,194.34,194.28,5.78296597]
[1761805154424,10.23859502,194.34,194.28,10.93017354]
[1761805154906,5.7362017,194.33,194.27,10.24042402]
[1761805155998,5.09296597,194.33,194.27,10.24042402]
[1761805156398,5.09296597,194.33,194.27,10.96042402]
[1761805156599,5.09296597,194.33,194.28,0.72]
[1761805156817,5.7361686,194.34,194.28,5.81296597]
[1761805157327,8.02534529,194.35,194.29,2.75677716]
[1761805157750,0.2,194.35,194.3,2.03677716]
[1761805157901,0.2,194.35,194.31,0.72]
[1761805158097,0.2,194.35,194.3,0.72]
[1761805158302,2.23677716,194.35,194.3,0.72]
[1761805158507,7.38216978,194.35,194.3,0.72]
[1761805158995,7.38216978,194.35,194.3,5.86659253]
[1761805158996,2.23677716,194.35,194.3,5.86659253]
[1761805159304,0.2,194.35,194.3,5.14659253]
[1761805159508,2.03677716,194.32,194.29,61.6]
[1761805159898,2.03677716,194.31,194.29,61.6]
[1761805160119,2.03677716,194.31,194.27,14.93629599]
[1761805160318,2.03677716,194.31,194.27,0.72]
[1761805160509,2.03677716,194.28,194.2,9.78882769]
[1761805160819,2.03677716,194.26,194.21,0.72]
[1761805161019,2.03677716,194.27,194.21,0.72]
[1761805161402,5.09665939,194.26,194.21,0.72]
[1761805161926,0.64340127,194.28,194.22,5.14880032]
[1761805162136,5.09665939,194.29,194.23,15.60548708]
[1761805162311,5.09665939,194.29,194.23,10.50882769]
[1761805162503,5.09665939,194.28,194.23,10.50882769]
[1761805162714,5.09665939,194.28,194.22,9.78882769]
[1761805163107,5.09665939,194.28,194.21,10.92572152]
[1761805163108,5.81665939,194.27,194.21,5.14906213]
[1761805163327,5.74006066,194.28,194.22,0.68]
[1761805163701,0.64336816,194.29,194.22,5.77665939]
[1761805163930,5.09665939,194.29,194.23,5.14853524]
[1761805164130,10.24373688,194.29,194.23,5.14853524]
[1761805164433,10.24373688,194.29,194.23,10.24519463]
[1761805164618,10.24373688,194.29,194.23,10.92519463]
[1761805164818,5.14707749,194.29,194.23,10.92519463]
[1761805166018,5.09665939,194.32,194.25,5.09665939]
[1761805166218,0.64330194,194.31,194.26,5.09665939]
[1761805166405,0.64330194,194.31,194.25,61.6]
[1761805166406,25.73818487,194.32,194.25,62.28]
[1761805166602,0.2,194.35,194.26,10.61098926]
[1761805166808,0.2,194.35,194.31,5.09665939]
[1761805167008,0.2,194.35,194.3,5.09665939]
[1761805167223,0.2,194.35,194.29,5.77665939]
[1761805167605,0.2,194.35,194.3,5.14668039]
[1761805168031,0.2,194.35,194.3,5.82668039]
[1761805168244,5.3454764,194.35,194.3,5.77665939]
[1761805168416,0.2,194.35,194.3,5.77665939]
[1761805169039,5.34552892,194.35,194.3,0.68]
[1761805169240,5.34552892,194.35,194.3,5.77665939]
[1761805169438,0.2,194.35,194.3,5.77665939]
[1761805169616,0.2,194.35,194.3,10.9232594]
[1761805170932,6.45986202,194.34,194.28,61.6]
[1761805171137,5.09665939,194.32,194.28,61.6]
[1761805171325,1.36330194,194.31,194.28,61.6]
[1761805171520,1.36330194,194.31,194.25,20.592]
[1761805171731,1.36330194,194.31,194.19,61.6]
[1761805171732,7.58838052,194.29,194.22,0.68]
[1761805171958,7.58838052,194.27,194.2,7.58838052]
[1761805172133,7.58838052,194.26,194.19,23.20680396]
[1761805172336,7.58838052,194.25,194.19,15.61842344]
[1761805172536,7.58838052,194.25,194.19,10.46882769]
[1761805172757,7.58838052,194.26,194.19,18.05720821]
[1761805173131,8.30838052,194.26,194.19,18.05720821]
[1761805173368,8.95184803,194.26,194.19,18.05720821]
[1761805174024,7.58838052,194.24,194.14,0.399968]
[1761805174341,8.23194742,194.23,194.16,7.58838052]
[1761805174525,7.58838052,194.22,194.16,9.78882769]
[1761805174848,0.72,194.23,194.16,17.37720821]
[1761805175154,1.3635669,194.23,194.16,18.05720821]
[1761805175951,5.14880032,194.22,194.16,23.20742207]
[1761805176137,6.51212011,194.23,194.16,23.20742207]
[1761805177134,12.86935035,194.26,194.2,7.58838052]
[1761805177135,0.64346751,194.26,194.2,7.58838052]
[1761805177443,21.23546751,194.26,194.2,7.58838052]
[1761805177626,21.23546751,194.26,194.2,8.26838052]
[1761805178321,26.38323937,194.26,194.2,8.26838052]
[1761805179130,5.86639142,194.32,194.24,7.58838052]
[1761805179436,7.58838052,194.3,194.24,7.58838052]
[1761805179744,21.23536816,194.29,194.23,7.58838052]
[1761805179931,21.23536816,194.29,194.23,8.26838052]
[1761805180327,5.14721021,194.28,194.23,0.68]
[1761805180738,5.14721021,194.28,194.23,7.58838052]
[1761805180956,0.72,194.27,194.23,7.58838052]
[1761805181153,5.14721021,194.28,194.22,7.58838052]
[1761805181359,5.14721021,194.28,194.23,7.58838052]
[1761805181556,21.23536816,194.29,194.24,7.58838052]
[1761805181760,20.592,194.29,194.25,7.58838052]
[1761805182057,28.82371556,194.3,194.22,0.68]
[1761805182259,29.54371556,194.3,194.23,7.58838052]
[1761805182460,34.69040461,194.3,194.23,12.73688376]
[1761805182866,27.10202409,194.3,194.24,7.58838052]
[1761805183745,27.10202409,194.3,194.24,12.73664511]
[1761805183944,26.38202409,194.3,194.25,7.58838052]
[1761805184346,27.10202409,194.3,194.25,7.58838052]
[1761805184668,0.72,194.29,194.25,7.58838052]
[1761805184865,1.36333504,194.3,194.25,7.58838052]
[1761805185073,0.64333504,194.3,194.25,8.26838052]
[1761805185383,8.95164935,194.32,194.26,7.58838052]
[1761805185539,8.95164935,194.32,194.26,8.26838052]
[1761805185737,14.09791811,194.32,194.26,13.41607659]
[1761805185952,6.50953759,194.32,194.26,13.41607659]
[1761805186155,6.50953759,194.32,194.26,75.01607659]
[1761805186472,3.46375554,194.33,194.29,7.58838052]
[1761805186682,0.84316953,194.35,194.29,7.58838052]
[1761805187260,0.2,194.35,194.3,8.26838052]
[1761805187458,0.2,194.35,194.31,7.58838052]
[1761805187787,0.2,194.35,194.32,5.14615067]
[1761805188065,0.2,194.35,194.32,13.41453119]
[1761805188260,0.72,194.34,194.29,0.14216157]
[1761805188465,0.2,194.35,194.3,17.37720821]
[1761805188967,0.2,194.35,194.31,8.26838052]
[1761805189848,0.2,194.35,194.3,9.78882769]
[1761805190048,1.36320263,194.34,194.28,12.7355447]
[1761805190257,1.36320263,194.34,194.29,7.58838052]
[1761805190764,7.58838052,194.31,194.25,7.58838052]
[1761805190945,8.30838052,194.31,194.24,12.73642993]
[1761805191347,8.30838052,194.31,194.24,13.41642993]
[1761805191742,8.30838052,194.31,194.25,7.58838052]
[1761805192143,8.30838052,194.31,194.26,5.14774014]
[1761805192544,7.58838052,194.29,194.22,17.37720821]
[1761805192850,8.23178179,194.28,194.21,12.73744596]
[1761805193355,8.95178179,194.28,194.21,12.73744596]
[1761805193568,8.95178179,194.28,194.21,13.43744596]
[1761805193758,1.36340127,194.28,194.22,7.58838052]
[1761805193958,1.36340127,194.28,194.23,5.14853524]
[1761805194158,21.23530194,194.31,194.24,17.37720821]
[1761805194462,33.97013173,194.31,194.24,18.07720821]
[1761805194851,8.30838052,194.3,194.24,17.37720821]
[1761805195054,7.58838052,194.27,194.21,9.78882769]
[1761805195374,7.58838052,194.27,194.21,0.7]
[1761805195745,8.23184803,194.26,194.2,5.14929929]
[1761805195951,5.14800514,194.25,194.2,5.14929929]
[1761805196176,0.64353377,194.24,194.19,8.28838052]
[1761805196356,8.95191429,194.24,194.17,13.43848085]
[1761805196865,0.72,194.23,194.17,13.43848085]
[1761805197247,8.23191429,194.24,194.17,13.43848085]
[1761805197760,8.95191429,194.24,194.17,13.43848085]
[1761805198156,1.36353377,194.24,194.19,7.58838052]
[1761805199049,0.64353377,194.24,194.19,8.28838052]
[1761805199252,0.72,194.24,194.18,7.58838052]
[1761805199447,13.38011507,194.25,194.18,8.28838052]
[1761805199674,0.72,194.24,194.18,8.28838052]
[1761805199881,13.38011507,194.25,194.18,8.28838052]
[1761805200183,14.10011507,194.25,194.18,13.43800835]
[1761805200750,0.64346751,194.26,194.21,7.58838052]
[1761805201291,26.38324206,194.26,194.22,0.7]
[1761805201450,27.10324206,194.26,194.2,7.58838052]
[1761805202189,27.10324206,194.26,194.2,8.28838052]
[1761805202349,34.69162258,194.26,194.19,12.73776775]